Cogmind - Beta 11.1 @@@ ROGUE MODE // 2022.07.13 @ 16:01:57 Player: Rainynight Result: Self-destructed Performance ------------- Evolutions (4) 2000 Regions Visited (9) 1800 Robots Destroyed (71) 355 Value Destroyed (2326) 2326 Prototype IDs (28) 560 Alien Tech Used (0) 0 Bonus (795) 795 TOTAL SCORE: 7836 Bonus ------- Follower Combat Kills 856 Aligned with FarCom 300 Friendly Fire -361 Cogmind --------- Core Integrity 263/850 Matter 104/300 Energy 68/100 System Corruption 0% Temperature Cool (0) Movement Walking (120) Location -6/Cetus Parts ------- > --- POWER (1) -------- (None) > --- PROPULSION (2) --- Flexi-carbon Leg Flexi-carbon Leg > --- UTILITY (9) ------ Advanced Heat Sink Advanced Heat Sink Medium Storage Unit Improved Signal Interpreter Terrain Scan Processor Target Analyzer Armor Integrity Analyzer > --- WEAPON (3) ------- Heavy Laser Katana > --- INVENTORY (10) --- Nuclear Core Angular Momentum Engine Huge Storage Unit Structural Scanner Improved Sensor Array Improved Sensor Array Bore Cannon Heavy Flail Katana Peak State ------------ > --- POWER ------------ Quantum Reactor > --- PROPULSION ------- Flexi-carbon Leg Myomer Leg > --- UTILITY ---------- Advanced Heat Sink Advanced Heat Sink Advanced Heat Sink Medium Storage Unit Advanced Energy Well Improved Signal Interpreter Terrain Scan Processor Target Analyzer Armor Integrity Analyzer > --- WEAPON ----------- Advanced KE Penetrator Bore Cannon Katana > --- INVENTORY -------- Nuclear Core Improved Deuterium Engine Angular Momentum Engine Flexi-carbon Leg Huge Storage Unit Structural Scanner Improved Sensor Array Bore Cannon Heavy Flail Katana [Rating: 76] Favorites ----------- Power Improved Deuterium Engine Engine Improved Deuterium Engine Power Core Nuclear Core Reactor Quantum Reactor Propulsion Flexi-carbon Leg Treads Light Treads Leg Flexi-carbon Leg Flight Unit Flight Unit Utility Medium Storage Unit Device Terrain Scanner Storage Medium Storage Unit Processor Improved Signal Interpreter Protection Improved Light Armor Plating Weapon Enhanced Autogun Energy Gun Gatling Laser Energy Cannon Heavy Ion Cannon Ballistic Gun Enhanced Autogun Ballistic Cannon Bore Cannon Impact Weapon Hammer Slashing Weapon Katana Build | -11 -10 -10 -10 -9 -8 -7 -6 -6 -6 ------- Run | Scr Mat Min Exi Min Mat Fac Fac Ext Cet Slots Evolved 8 | . . . . . 4 2 2 . . Power . | . . . . . . . . . . Propulsion . | . . . . . . . . . . Utility 7 | . . . . . 3 2 2 . . Weapon 1 | . . . . . 1 . . . . Parts Attached 101 | 6 7 . 2 7 14 12 7 38 8 Power 10 | 1 . . . 1 1 3 1 2 1 Engine 8 | 1 . . . 1 1 3 1 1 . Core 1 | . . . . . . . . 1 . Reactor 1 | . . . . . . . . . 1 Propulsion 20 | 2 3 . . 2 3 1 3 4 2 Treads 6 | 2 1 . . 2 1 . . . . Leg 12 | . . . . . 2 1 3 4 2 Wheel . | . . . . . . . . . . Hover . | . . . . . . . . . . Flight 2 | . 2 . . . . . . . . Utility 44 | 1 3 . . 4 6 4 3 21 2 Device 19 | . . . . . 3 3 1 11 1 Storage 10 | 1 2 . . 3 . . 1 3 . Processor 8 | . 1 . . . 2 . 1 3 1 Hackware . | . . . . . . . . . . Protection 7 | . . . . 1 1 1 . 4 . Artifact . | . . . . . . . . . . Weapon 27 | 2 1 . 2 . 4 4 . 11 3 Energy Gun 11 | 2 1 . 1 . 1 . . 5 1 Energy Cannon 1 | . . . . . . . . 1 . Ballistic Gun 8 | . . . 1 . 2 3 . 1 1 Ballistic Cannon 3 | . . . . . . . . 2 1 Launcher . | . . . . . . . . . . Special Weapon . | . . . . . . . . . . Impact Weapon 2 | . . . . . 1 . . 1 . Slashing Weapon 2 | . . . . . . 1 . 1 . Piercing Weapon . | . . . . . . . . . . Special Melee Weapon . | . . . . . . . . . . Unidentified Prototypes 5 | . . . . . 2 1 . 1 1 Parts Lost 19 | . . . . . . . 2 7 10 Power 2 | . . . . . . . . 1 1 Propulsion 3 | . . . . . . . . 1 2 Utility 9 | . . . . . . . 2 3 4 Weapon 5 | . . . . . . . . 2 3 Highest Loss Streak 7 | . . . . . . . 1 4 7 To Critical Strikes 1 | . . . . . . . . . 1 Average Slot Usage (%) 90 | . 89 71 45 83 81 97 92 97 95 Engine 6 | . 12 . . 13 9 7 6 4 2 Treads 3 | . 24 . . 27 8 . . . . Leg 10 | . . . . . 9 15 13 13 12 Device 17 | . . . . . 7 27 26 22 19 Storage 9 | . 14 14 14 14 9 7 9 7 12 Processor 13 | . 8 14 14 . 11 10 8 16 24 Protection 7 | . . . . 13 9 7 6 9 . Energy Gun 4 | . 25 14 2 . 2 . . 4 . Energy Cannon 1 | . . . . . . . . 3 . Ballistic Gun 7 | . . . 11 14 14 19 13 2 3 Ballistic Cannon 1 | . . . . . . . . 2 7 Slashing Weapon 3 | . . . . . . 1 6 5 6 Naked Turns . | . . . . . . . . . . Heaviest Build 56 | 13 18 7 15 28 33 37 40 52 56 Greatest Support 45 | 40 40 8 8 40 40 32 40 45 45 Greatest Overweight (x) 4 | . 4 . 4 4 2 1 1 1 2 Average Overweight (x) . | . . . 1 . . . . . . Largest Inventory Capacity 25 | 8 10 8 8 25 10 10 10 10 10 Average Capacity 9 | 7 9 8 8 9 10 10 10 10 10 Most Carried 10 | 4 10 8 8 8 10 10 10 10 10 Average Carried 9 | 2 9 7 7 7 9 9 9 9 9 Final Capacity 10 | 8 8 8 8 10 10 10 10 10 10 Final Carried 10 | 4 7 8 7 8 10 10 10 10 9 Class Distribution -------------------- 45% | Scavenger-Mutant 19% | Mutant 18% | Scavenger-Skirmisher 8% | Assassin 5% | Scavenger-Assassin 3% | Skirmisher Dominant Class ---------------- Mutant | -10/Materials Mutant | -10/Mines Mutant | -10/Exiles Mutant | -9/Mines Scavenger-Skirmisher | -8/Materials Scavenger-Skirmisher | -7/Factory Assassin | -6/Factory Scavenger-Mutant | -6/Extension Scavenger-Mutant | -6/Cetus Resources | -11 -10 -10 -10 -9 -8 -7 -6 -6 -6 ----------- Run | Scr Mat Min Exi Min Mat Fac Fac Ext Cet Matter Collected 1709 | 76 111 . . 102 461 49 298 503 109 Remotely 19 | . . . . . . . . 19 . Salvage Created 3993 | . 153 . . 117 729 60 475 2245 214 Parts 161 | . 6 . . 8 43 7 19 71 7 Haulers Intercepted 1 | . . . . . 1 . . . . Recyclers Shooed 5 | . 1 . . 1 2 . . 1 . Parts Field Recycled . | . . . . . . . . . . Retrieved Matter . | . . . . . . . . . . Parts Self-Destructed . | . . . . . . . . . . Prevented . | . . . . . . . . . . Kills | -11 -10 -10 -10 -9 -8 -7 -6 -6 -6 ------- Run | Scr Mat Min Exi Min Mat Fac Fac Ext Cet Combat Hostiles Destroyed 40 | . 3 . . 3 8 1 5 16 4 Melee 11 | . . . . . . . 3 6 2 Guns 24 | . 3 . . 3 8 1 2 7 . Cannons 5 | . . . . . . . . 3 2 Classes Destroyed 14 | . 2 . . 2 7 2 . 1 . Worker 5 | . . . . . 1 . 3 1 . Builder 3 | . . . . . 1 . . 2 . Tunneler 1 | . . . . . . . . 1 . Hauler 1 | . . . . . 1 . . . . Recycler 14 | . . . . . 2 . 1 11 . Mechanic 1 | . 1 . . . . . . . . Operator 2 | . . . . . . 1 . 1 . Watcher 4 | . . . . . 4 . . . . Swarmer 6 | . . . . 1 1 . . 4 . Grunt 23 | . 3 . . 1 3 . 4 10 2 Brawler 2 | . . . . 1 1 . . . . Sentry 4 | . . . . . 2 . . 2 . Hunter 1 | . . . . . 1 . . . . Programmer 2 | . . . . . . 1 1 . . Cetus Guard 2 | . . . . . . . . . 2 Best Kill Streak 4 | . 2 . . 2 4 1 2 4 2 Combat Bots Only 3 | . 2 . . 2 2 1 1 3 2 Max Kills in Single Turn 2 | . 1 . . 1 1 1 1 2 1 Gunslinging . | . . . . . . . . . . Exploded . | . . . . . . . . . . Melee 1 | . . . . . . . 1 1 1 Uniques/NPCs Destroyed . | . . . . . . . . . . Combat | -11 -10 -10 -10 -9 -8 -7 -6 -6 -6 -------- Run | Scr Mat Min Exi Min Mat Fac Fac Ext Cet Damage Taken 4108 | . 187 . . 97 187 31 642 1392 1572 Core 650 | . 38 . . 10 15 . 134 205 248 Absorbed by Shields 142 | . . . . . . . . 142 . Regen/Repaired (Parts) 11 | . . . . . 11 . . . . Core Remaining (%) 94 | 100 . . . 80 97 100 . . . Volleys Fired 174 | . 18 . . . 35 4 20 76 21 Largest 3 | . 2 . . . 1 3 2 2 2 Hottest 146 | . 90 . . . 63 75 50 146 114 Shots Fired 363 | . 36 . . 20 80 12 41 139 35 Gun 268 | . 36 . . 20 80 12 41 75 4 Cannon 95 | . . . . . . . . 64 31 Launcher . | . . . . . . . . . . Special . | . . . . . . . . . . Kinetic 208 | . . . . 20 75 12 41 25 35 Thermal 155 | . 36 . . . 5 . . 114 . Explosive . | . . . . . . . . . . Electromagnetic . | . . . . . . . . . . Robot Hit Streak 20 | . 20 . . 8 8 4 6 13 5 Robot Miss Streak 8 | . 2 . . 2 2 1 2 8 3 Penetration Max 1 | . . . . . . . . 1 1 Secondary Targets . | . . . . . . . . . . Autonomous 66 | . . . . 20 45 1 . . . Shots Hit Robots 302 | . 29 . . 15 59 7 53 122 17 Core Hits 144 | . 10 . . 3 22 3 14 84 8 Critical Kills 8 | . . . . . 1 . 1 4 2 Critical Parts Destroyed 15 | . . . . 2 1 . . 5 7 Critical Strikes 30 | . . . . 2 2 . 4 10 12 Destroy 24 | . . . . 2 2 . 1 9 10 Sever 6 | . . . . . . . 3 1 2 Melee Attacks 77 | . . . . . 1 . 31 34 11 Impact 5 | . . . . . 1 . . 4 . Slashing 72 | . . . . . . . 31 30 11 Piercing . | . . . . . . . . . . Sneak Attacks 11 | . . . . . . . 4 7 . Combat Hostiles . | . . . . . . . . . . Follow-up Attacks . | . . . . . . . . . . Damage Inflicted 7717 | . 346 . . 420 1250 132 1433 3508 628 Guns 4056 | . 346 . . 420 1250 132 458 1348 102 Cannons 1414 | . . . . . . . . 1135 279 Explosions . | . . . . . . . . . . Melee 2247 | . . . . . . . 975 1025 247 Ramming . | . . . . . . . . . . Kinetic 2996 | . . . . 420 1200 132 458 405 381 Thermal 2474 | . 346 . . . 50 . . 2078 . Explosive . | . . . . . . . . . . Electromagnetic . | . . . . . . . . . . Impact . | . . . . . . . . . . Slashing 2247 | . . . . . . . 975 1025 247 Piercing . | . . . . . . . . . . Highest Corruption 2 | . 1 1 1 1 . . 1 2 . Average Corruption 1 | . 1 1 1 1 . . 1 1 . Corruption Purged 2 | . . . . . . . . 2 . Corruption Blocked . | . . . . . . . . . . Effects 35 | . 3 . 2 3 . . 1 26 . Message Errors 9 | . 1 . 1 1 . . . 6 . Matter Fused 8 | . 1 . 1 1 . . . 5 . Heat Flow Errors 4 | . . . . . . . . 4 . Energy Discharges 1 | . . . . . . . . 1 . Data Loss (minor) 4 | . 1 . . . . . . 3 . Data Loss (major) 3 | . . . . . . . . 3 . Misfires 2 | . . . . . . . 1 1 . Alerts 2 | . . . . 1 . . . 1 . Weapon Failures 2 | . . . . . . . . 2 . Overload Shots . | . . . . . . . . . . Overflow Damage 88 | . . . . . . . 39 49 . Projectiles . | . . . . . . . . . . Explosions . | . . . . . . . . . . Melee 88 | . . . . . . . 39 49 . Knockbacks 3 | . . . . . . . . 3 . Impact . | . . . . . . . . . . Kinetic 3 | . . . . . . . . 3 . Secondary . | . . . . . . . . . . Self-Inflicted Damage . | . . . . . . . . . . Shots . | . . . . . . . . . . Rammed . | . . . . . . . . . . Targets Rammed . | . . . . . . . . . . Kicked . | . . . . . . . . . . Crushed . | . . . . . . . . . . Highest Temperature 441 | . 441 . . . 377 48 27 198 . Average Temperature 94 | . 170 . . . 63 24 11 39 . Received Heat Transfer 1234 | . 105 . . 12 63 . 273 250 531 Effects 1 | . 1 . . . . . . . . Shutdowns 1 | . 1 . . . . . . . . Siege Activations . | . . . . . . . . . . Robots Corrupted . | . . . . . . . . . . Combat Hostiles . | . . . . . . . . . . Parts Fried 2 | . . . . . . . . 2 . Impact Corruptions . | . . . . . . . . . . Robots Melted . | . . . . . . . . . . Combat Hostiles . | . . . . . . . . . . Parts Melted 10 | . 4 . . . . . . 6 . Heat Transferred 4763 | . 917 . . . 111 . . 3735 . Parts Sabotaged . | . . . . . . . . . . Parts Stolen . | . . . . . . . . . . Parts Stripped . | . . . . . . . . . . Power Chain Reactions . | . . . . . . . . . . Missiles Intercepted . | . . . . . . . . . . Alert | -11 -10 -10 -10 -9 -8 -7 -6 -6 -6 ------- Run | Scr Mat Min Exi Min Mat Fac Fac Ext Cet Peak Influence 418 | . 150 5 . 139 283 179 180 418 199 Initial 128 | . . 5 . . 53 128 . 19 104 Average 120 | . 47 5 . 87 145 81 53 154 155 Maximum Alert Level 2 | . . . . . 1 . . 2 . Low Security (%) 82 | 100 100 100 . 100 76 100 100 69 100 Level 1 16 | . . . . . 23 . . 29 . Level 2 . | . . . . . . . . . . Level 3 . | . . . . . . . . . . Level 4 . | . . . . . . . . . . Level 5 . | . . . . . . . . . . High Security . | . . . . . . . . . . Max Security . | . . . . . . . . . . Squads Dispatched 10 | . 1 . . . . 2 2 3 2 Investigation 4 | . . . . . . . . 2 2 Extermination 3 | . . . . . . 1 2 . . Reinforcement 3 | . 1 . . . . 1 . 1 . Assault . | . . . . . . . . . . Garrison . | . . . . . . . . . . Intercept . | . . . . . . . . . . Searches Triggered . | . . . . . . . . . . Construction Impeded . | . . . . . . . . . . Haulers Reinforced . | . . . . . . . . . . Active Scanning Responses . | . . . . . . . . . . Cargo Convoy Interrupts . | . . . . . . . . . . Stealth | -11 -10 -10 -10 -9 -8 -7 -6 -6 -6 --------- Run | Scr Mat Min Exi Min Mat Fac Fac Ext Cet Distress Signals 4 | . 1 . . . . . 1 1 1 Communications Jammed . | . . . . . . . . . . Distress Signals . | . . . . . . . . . . Times Spotted 100 | . 11 . . 5 12 3 10 43 16 Peak Tracking Total 8 | . 4 . . 6 4 1 5 5 8 Tactical Retreats 12 | . 1 . . 1 1 . 3 5 1 Traps | -11 -10 -10 -10 -9 -8 -7 -6 -6 -6 ------- Run | Scr Mat Min Exi Min Mat Fac Fac Ext Cet Traps Triggered 3 | . 1 . . . . 1 . 1 . Indirectly . | . . . . . . . . . . Trap Hack Attempts . | . . . . . . . . . . Triggered . | . . . . . . . . . . Disarmed . | . . . . . . . . . . Reprogrammed . | . . . . . . . . . . Reused . | . . . . . . . . . . Traps Extracted . | . . . . . . . . . . Installed . | . . . . . . . . . . Triggered . | . . . . . . . . . . Machines | -11 -10 -10 -10 -9 -8 -7 -6 -6 -6 ---------- Run | Scr Mat Min Exi Min Mat Fac Fac Ext Cet Machines Disabled 10 | . . . . . 3 . . 5 2 Max in Single Turn 2 | . . . . . 1 . . 1 2 Garrison Access 1 | . . . . . . 1 . . . Energy Cycler 1 | . . . . . . . . 1 . Machines Sabotaged . | . . . . . . . . . . Garrisons Compromised . | . . . . . . . . . . Overloaded Fab Kills . | . . . . . . . . . . Hacking | -11 -10 -10 -10 -9 -8 -7 -6 -6 -6 --------- Run | Scr Mat Min Exi Min Mat Fac Fac Ext Cet Machines Accessed 23 | . 4 . 1 . 1 4 2 9 2 Terminals 17 | . 3 . . . . 1 2 9 2 Fabricators 1 | . . . . . . 1 . . . Repair Stations 1 | . . . . . 1 . . . . Recycling Units 2 | . 1 . . . . 1 . . . Scanalyzers . | . . . . . . . . . . Garrison Access 1 | . . . . . . 1 . . . Total Hacks 51 | . 9 . 1 . 4 8 3 22 4 Successful 25 | . 4 . 1 . 3 6 1 10 . Failed 26 | . 5 . . . 1 2 2 12 4 Catastrophic 5 | . 1 . . . . . . 3 1 Database Lockouts . | . . . . . . . . . . Manual 16 | . 4 . 1 . . 4 1 6 . Terminals 39 | . 8 . . . . 2 3 22 4 Fabricators 1 | . . . . . . 1 . . . Repair Stations 4 | . . . . . 4 . . . . Recycling Units 5 | . 1 . . . . 4 . . . Scanalyzers . | . . . . . . . . . . Garrison Access 1 | . . . . . . 1 . . . Terminal Hacks 16 | . 3 . 1 . . 1 1 10 . Open Door 6 | . . . . . . . 1 5 . Unreport Threat 1 | . . . . . . . . 1 . Locate Traps 2 | . . . . . . 1 . 1 . Security Status 1 | . . . . . . . . 1 . Hauler Manifests 3 | . 2 . . . . . . 1 . Registered Prototypes 1 | . 1 . . . . . . . . Zone Layout 1 | . . . . . . . . 1 . EX-Prototype ID Bank 1 | . . . 1 . . . . . . Fabricator Hacks 1 | . . . . . . 1 . . . Network Status 1 | . . . . . . 1 . . . Repair Station Hacks 3 | . . . . . 3 . . . . Scan Component 2 | . . . . . 2 . . . . Repair 1 | . . . . . 1 . . . . Recycling Unit Hacks 3 | . 1 . . . . 2 . . . Report Inventory 3 | . 1 . . . . 2 . . . Scanalyzer . | . . . . . . . . . . Garrison Access Hacks 1 | . . . . . . 1 . . . Seal Access 1 | . . . . . . 1 . . . Unauthorized Hacks 1 | . . . . . . 1 . . . Terminals . | . . . . . . . . . . Fabricators . | . . . . . . . . . . Repair Stations . | . . . . . . . . . . Recycling Units 1 | . . . . . . 1 . . . Reject 1 | . . . . . . 1 . . . Scanalyzers . | . . . . . . . . . . Garrison Access . | . . . . . . . . . . Data Cores Recovered 1 | . . . . . . . . 1 . Used . | . . . . . . . . . . Hacking Detections 13 | . 3 . . . 1 2 . 5 2 Full Trace Events 6 | . 2 . . . . . . 2 2 Feedback Events 1 | . 1 . . . . . . . . Corruption 1 | . 1 . . . . . . . . Feedback Blocked . | . . . . . . . . . . Robot Schematics Acquired . | . . . . . . . . . . Robots Built . | . . . . . . . . . . Authchips . | . . . . . . . . . . Time . | . . . . . . . . . . Total Robot Build Rating . | . . . . . . . . . . Part Schematics Acquired . | . . . . . . . . . . Parts Built . | . . . . . . . . . . Authchips . | . . . . . . . . . . Time . | . . . . . . . . . . Total Part Build Rating . | . . . . . . . . . . Parts Repaired 1 | . . . . . 1 . . . . Time 136 | . . . . . 136 . . . . Parts Recycled . | . . . . . . . . . . Recycled Matter . | . . . . . . . . . . Retrieved Matter . | . . . . . . . . . . Retrieved Components . | . . . . . . . . . . Parts Scanalyzed . | . . . . . . . . . . Part Schematics Acquired . | . . . . . . . . . . Parts Damaged . | . . . . . . . . . . Bothacking | -11 -10 -10 -10 -9 -8 -7 -6 -6 -6 ------------ Run | Scr Mat Min Exi Min Mat Fac Fac Ext Cet Used RIF Installer . | . . . . . . . . . . Robots Hacked . | . . . . . . . . . . Non-combat . | . . . . . . . . . . Combat . | . . . . . . . . . . Robot Hacks Applied . | . . . . . . . . . . Relay Couplers Released . | . . . . . . . . . . Fabnet Peak Effective % . | . . . . . . . . . . Robots Rewired 12 | . . . . . . . . 12 . Allies Hacked . | . . . . . . . . . . Hacks Repelled . | . . . . . . . . . . Allies | -11 -10 -10 -10 -9 -8 -7 -6 -6 -6 -------- Run | Scr Mat Min Exi Min Mat Fac Fac Ext Cet Total Allies 20 | . . 2 . . . . . 18 . Largest Group 6 | . . 2 2 . . . . 6 3 Highest-Rated Group 305 | . . 42 42 . . . . 305 83 Highest-Rated Ally 159 | . . 31 31 . . . . 159 39 Total Orders . | . . . . . . . . . . Ally Attacks 165 | . . . . . . . . 157 8 Total Damage 3872 | . . . . . . . . 3642 230 Kills 29 | . . . . . . . . 26 3 Allies Corrupted . | . . . . . . . . . . Allies Melted . | . . . . . . . . . . Intel | -11 -10 -10 -10 -9 -8 -7 -6 -6 -6 ------- Run | Scr Mat Min Exi Min Mat Fac Fac Ext Cet Robot Analysis Total . | . . . . . . . . . . Derelict Logs Recovered 1 | . . 1 . . . . . . . Drone Launches . | . . . . . . . . . . Drone Recoveries . | . . . . . . . . . . Exploration | -11 -10 -10 -10 -9 -8 -7 -6 -6 -6 ------------- Run | Scr Mat Min Exi Min Mat Fac Fac Ext Cet Turns Passed 5793 | 71 411 71 316 208 744 710 513 2505 244 Spaces Moved 2840 | 39 250 113 221 119 376 324 231 1091 76 Core 118 | 4 1 . 110 3 . . . . . Treads 506 | 35 181 . . 116 174 . . . . Legs 1924 | . . . . . 202 324 231 1091 76 Wheels . | . . . . . . . . . . Hover . | . . . . . . . . . . Flight 292 | . 68 113 111 . . . . . . Fastest Speed 37 | 50 37 37 37 160 125 125 125 120 120 Average Speed 155 | 148 127 37 140 162 162 181 133 170 175 Slowest Speed 280 | 160 280 37 250 250 260 195 195 195 260 Overloaded Moves . | . . . . . . . . . . Propulsion Burnouts . | . . . . . . . . . . Robots Hopped 1 | . 1 . . . . . . . . Cave-ins Triggered . | . . . . . . . . . . Exploration Rate (%) 33 | 4 62 27 43 24 29 10 5 89 45 Regions Visited 9 Branch Regions 5 Pre-discovered Areas 1 | . . 1 . . . . . . . Known Exits Taken 4 | . . . . . 1 1 1 1 . Unknown Exits Taken 5 | 1 1 1 1 1 . . . . . Scrap Searched . | . . . . . . . . . . Spaces Dug 1 | . . . . . 1 . . . . Terrain Destroyed 83 | . . . . 16 36 . . 20 11 Melee 1 | . . . . . 1 . . . . Projectile 71 | . . . . 16 35 . . 9 11 AOE 11 | . . . . . . . . 11 . Terrain Rammed . | . . . . . . . . . . Walls Destroyed . | . . . . . . . . . . Machines Disabled . | . . . . . . . . . . Actions | -11 -10 -10 -10 -9 -8 -7 -6 -6 -6 --------- Run | Scr Mat Min Exi Min Mat Fac Fac Ext Cet Total 3834 | 50 307 141 229 132 485 446 368 1543 133 Wait 365 | . 9 28 . 4 42 85 73 111 13 Move 2829 | 38 247 112 220 118 375 323 230 1090 76 Hop 1 | . 1 . . . . . . . . Pick Up 45 | 5 10 1 1 2 6 9 2 8 1 Fast Attach 56 | 6 6 . 2 3 8 5 2 18 6 Attach 12 | . . . . 1 1 4 1 3 2 Detach 12 | . 3 . . 1 2 1 . 4 1 Swap 33 | . 1 . . 3 5 3 4 17 . Drop 78 | 1 12 . 6 . 10 12 5 30 2 Fire 174 | . 18 . . . 35 4 20 76 21 Melee 77 | . . . . . 1 . 31 34 11 Ram . | . . . . . . . . . . Kick . | . . . . . . . . . . Crush . | . . . . . . . . . . Escape Stasis 10 | . . . . . . . . 10 . Rewire 142 | . . . . . . . . 142 . Trap . | . . . . . . . . . . Miscellaneous . | . . . . . . . . . . Route ------- -11/Scrapyard -10/Materials -10/Mines -10/Exiles -9/Mines -8/Materials -7/Factory (discovered 2 exits: *Fac / *Sto) -6/Factory -6/Extension (discovered 3 exits: *Fac x2 / *Cet) -6/Cetus History --------- Turn | Location | Event 8 | -11/Scrapyard | Discovered new exit (range 16) 72 | -11/Scrapyard | Entered Materials 307 | -10/Materials | Build established: Mutant 479 | -10/Materials | Discovered new exit (range 9) 483 | -10/Materials | Entered Mines 492 | -10/Mines | Found a damaged Exp. Sensor Array with a note attached 493 | -10/Mines | Found Prototype Device 512 | -10/Mines | Learned location of Recycling (-7) 524 | -10/Mines | Deemed a non-threat by the Exiles lab entrance 524 | -10/Mines | Discovered new exit (range 5) 554 | -10/Mines | Entered Exiles 554 | -10/Exiles | Accompanied by 2 allies 563 | -10/Exiles | Met 8R-AWN 570 | -10/Exiles | Met EX-HEX 580 | -10/Exiles | Met EX-BIN 584 | -10/Exiles | Led the pair of lost Derelicts to a safe place 585 | -10/Exiles | Aligned with FarCom system 586 | -10/Exiles | Given EX-Vault access code 594 | -10/Exiles | Opened EX-Vault 607 | -10/Exiles | Found AWS/Gauss 617 | -10/Exiles | Found PSU Rigger 670 | -10/Exiles | Warned to stay clear of 0b10 Research branches 833 | -10/Exiles | Discovered new exit (range 17) 870 | -10/Exiles | Stole two prototypes: AWS/Gauss, PSU Rigger 870 | -10/Exiles | Entered Mines 995 | -9/Mines | Assembled infested the area 1070 | -9/Mines | Discovered new exit (range 6) 1078 | -9/Mines | Entered Materials 1078 | -8/Materials | Evolved 4 slots: Utility x3, Weapon x1 1078 | -8/Materials | Identified Exp. Sensor Array 1229 | -8/Materials | Repaired Faulty Exp. Sensor Array? 1784 | -8/Materials | Discovered new exit (range 15) 1807 | -8/Materials | Build established: Scavenger-Skirmisher 1821 | -8/Materials | Identified exit to Factory 1822 | -8/Materials | Entered Factory 1822 | -7/Factory | Evolved 2 slots: Utility x2 1824 | -7/Factory | FarCom data flow suspended 2155 | -7/Factory | Discovered new exit (range 7) 2162 | -7/Factory | Identified exit to Storage 2491 | -7/Factory | Discovered new exit (range 15) 2530 | -7/Factory | Identified exit to Factory 2532 | -7/Factory | Entered another Factory area 2532 | -6/Factory | Evolved 2 slots: Utility x2 2678 | -6/Factory | Build established: Assassin 3036 | -6/Factory | Discovered new exit (range 9) 3044 | -6/Factory | Identified exit to Extension 3045 | -6/Factory | Entered Extension 3215 | -6/Extension | Lost 4 parts (1p1n1u1w) 3271 | -6/Extension | Build established: Scavenger-Mutant 3385 | -6/Extension | Rescued a captive Derelict 3414 | -6/Extension | Rescued A7 3436 | -6/Extension | Rescued a captive Derelict 3485 | -6/Extension | Rescued a captive Derelict 3817 | -6/Extension | Rescued a captive Derelict 3818 | -6/Extension | Rescued a captive Derelict 3824 | -6/Extension | Spotted B-75 Beast 3916 | -6/Extension | Spotted B-75 Beast 3970 | -6/Extension | Disrupted transfer network 4498 | -6/Extension | Allies destroyed B-75 Beast 4578 | -6/Extension | Discovered new exit (range 3) 4764 | -6/Extension | Extracted ID and sensor layout for unrecognized location from A7's data core 5402 | -6/Extension | Discovered new exit (range 10) 5403 | -6/Extension | Discovered new exit (range 7) 5415 | -6/Extension | Identified exit to Cetus 5421 | -6/Extension | Identified exit to Factory 5550 | -6/Extension | Entered Cetus 5550 | -6/Cetus | Accompanied by 3 allies 5575 | -6/Cetus | Spotted Cetus Guard 5575 | -6/Cetus | Spotted Cetus Guard 5582 | -6/Cetus | Spotted Cetus Guard 5586 | -6/Cetus | Destroyed Cetus Guard 5587 | -6/Cetus | Spotted Cetus Guard 5591 | -6/Cetus | Destroyed Cetus Guard 5606 | -6/Cetus | Allies destroyed Cetus Guard 5648 | -6/Cetus | Lost 3 parts (2u1w) 5752 | -6/Cetus | Core integrity fell below 50% 5794 | -6/Cetus | Self-destructed Last Messages --------------- 05756_ Slug penetrates G-50 Soldier. 05756_ G-50 Soldier suffers critical hit (Destroy). 05756_ Destroyed Adv. Heat Sink. 05758_ G-50 Soldier destroyed. 05759_ Acquired 57 matter. 05763_ G-50 Soldier Hvy. Laser severed. 05766_ Adv. Energy Well destroyed. 05766_ Critical hit (Burn: +37). 05769_ Acquired Hvy. Laser. 05772_ Myomer Leg destroyed. 05777_ Acquired 2 matter. 05779_ Quantum Reactor destroyed. 05784_ Flexi-carbon Leg destroyed. 05785_ Adv. Heat Sink destroyed. 05785_ Critical hit (Burn: +37). 05787_ Acquired Flexi-carbon Leg. 05790_ G-50 Soldier Adv. Heat Sink severed. 05790_ Adv. KE Penetrator destroyed. 05793_ C-30 ARC bursts open, deploying its payload. 05793_ S-27 Virus unfolds itself. Map ----- +----------------------------------------------------+ | ?????????????????????????????????????????????????? | | ?????????????????????????????????????????????????? | | ?????????????????????????????????????????????????? | | ?????????????????????????????????????????????????? | | ?????????????????????????????????????????????????? | | ?????????????????????????????????????????????????? | | ?????????????????????????????????????????????????? | | ?????????????????????????????????????????????????? | | ?? ????????????????????????????????????????????? | | #? #???????????????????????????????????????????? | | ?# #???????????????????????????????????????????? | | ?# #???????????????????????????????????????????? | | ?# #???????????????????????????????????????????? | | ?# #???????????????????????????????????????????? | | ## ##??????????????? ??????????????????????????? | | ## #?#?????????????""""""" ????????????????????? | | ?# #?#????????#"""""""""""""???????????????????? | | ## #???#??????#""""" """ """"?#????????????????? | | ?# ####???????#""""""" """""""#????????????????? | | ?# ##???#?????#""" " " """#? "???????????? | | ## #########?#" """ """ "#" ""??????????? | | # # # ### ss #?????????? | | %%] !* + sC +?????????? | | % %*%%! ; g s + ????????? | | !%%% ; /g g + ????????? | | ### #%## # ###" %@ #?????????? | | ##?############?#" "" *= """"""""#??????????????? | | #??##????#??????######++#########????????????????? | | ?##??#??????????# * ""#????????????????????? | | ##??#?#?#???????###" ""#????????????????????? | | ?#??????????????#" " ""#????????????????????? | | #???#??#?#??????### ""#????????????????????? | | ?##??#?#????????#" "###????????????????????? | | ??###???#???????#" """"#????????????????????? | | #????##?????????#" T"""#????????????????????? | | ??#?????????????#" """"#????????????????????? | | #???????????????### "###????????????????????? | | ????????????????# """"#????????????????????? | | #???????????????#" " T"""#????????????????????? | | ????????????????#" """"#????????????????????? | | ????????????????#" " " #"###????????????????????? | | ????????????????# #""??????????????????????? | | ????????????????#""" """#"""?????????????????????? | | ????????????????#########????????????????????????? | | ?????????????????????????????????????????????????? | | ?????????????????????????????????????????????????? | | ?????????????????????????????????????????????????? | | ?????????????????????????????????????????????????? | | ?????????????????????????????????????????????????? | | ?????????????????????????????????????????????????? | +----------------------------------------------------+ Best States ------------- Heat Dissipation 94 Energy Generation 25 Energy Capacity 850 Matter Stores 300 Matter Capacity 350 Sight Range 18 Robot Scan Range 15 Terrain Scan Range 16 Terrain Scan Density 85 Jamming Range 12 Armor Coverage 300 Evasion (%) 62 Targeting Accuracy 5 Melee Accuracy 8 Target Analysis 5 Armor Integrity Analysis 30 Recoil Reduction 2 Item Schematics ----------------- None Robot Schematics ------------------ None Fabricated ------------ Nothing Alien Tech Used ----------------- None Achievements -------------- None Challenges ------------ None Game ------ Seed ActuatorAerolevRifle Manual? 0 Play Time 01:01:27 Cumulative 118.0 hours Start 2022.07.13 @ 14:37:00 End 2022.07.13 @ 16:01:57 Sessions 1 Manual Loads 0 Difficulty Rogue Special Mode None Game No. 153 Rogue 153 Adventurer 0 Explorer 0 Win Type - Total 5 Types 5/0/0/0/0/0/0/0/0 Lore% 59 Gallery% 62 Achievement% 53 Wizard Run 0 Options --------- ASCII 1 Keyboard 1 Movement Numpad Keybinds 0 Fullscreen 1 Font 18/X11 Map View 76x50 Tactical HUD 1 Map Filters NONE Filters NONE Steam 1 RUN: 6f38d64a-268b-4501-97bb-4b2b61b0cfe3